fUST/lending_fUST_20241229
["ID","MTS","AMOUNT","RATE_DAILY","PERIOD"]
[346979364,1735446650371,-500.0,0.00012327,2]
[346979365,1735446650380,-727.39,0.00012327,2]
[346979366,1735446650389,-500.0,0.00012328,2]
[346979367,1735446650399,-151.0,0.00012328,2]
[346979368,1735446650412,-151.0,0.00012328,2]
[346979369,1735446650421,-500.0,0.00012328,2]
[346979370,1735446650431,-500.0,0.00012328,2]
[346979371,1735446650441,-1453.82,0.00012328,2]
[346979372,1735446650451,-500.0,0.00012329,2]
[346979373,1735446650460,-538.09,0.00012452,2]
[346979374,1735446650469,-870.4,0.00012452,2]
[346979375,1735446650478,-151.0,0.00012453,2]
[346979376,1735446650489,-151.0,0.00012453,2]
[346979377,1735446650499,-151.0,0.00012453,2]
[346979378,1735446650508,-152.847088,0.00012453,2]
[346979379,1735446650518,-151.0,0.00012453,2]
[346979380,1735446650527,-959.840012,0.00012453,2]
[346979381,1735446650538,-151.0,0.00012453,2]
[346979382,1735446650547,-959.840012,0.00012453,2]
[346979383,1735446650557,-151.0,0.00012453,2]
[346979384,1735446650567,-151.0,0.00012453,2]
[346979385,1735446650576,-151.0,0.00012453,2]
[346979386,1735446650585,-197.142334,0.00012453,2]
[346979387,1735446650594,-197.142334,0.00012453,2]
[346979388,1735446650604,-1551.59,0.00012461,2]
[346979389,1735446650613,-582.92,0.00012461,2]
[346979390,1735446650623,-870.4,0.00012462,2]
[346979391,1735446650633,-637.54,0.00012594,2]
[346979392,1735446650642,-1035.04,0.00012596,2]
[346979393,1735446650651,-594.07,0.00012596,2]
[346979394,1735446650661,-500.0,0.00012596,2]
[346979395,1735446650671,-500.0,0.00012596,2]
[346979396,1735446650680,-593.08,0.00012596,2]
[346979397,1735446650689,-11324.13,0.00012598,2]
[346979398,1735446650699,-538.09,0.00012601,2]
[346979399,1735446650709,-170.208355,0.00012601,2]
[346979400,1735446650718,-238.924818,0.00012601,2]
[346979401,1735446650728,-170.208355,0.00012601,2]
[346979402,1735446650738,-238.924818,0.00012601,2]
[346979403,1735446650747,-727.39,0.00012601,2]
[346979404,1735446650756,-500.0,0.00012602,2]
[346979405,1735446650766,-500.0,0.00012602,2]
[346979406,1735446650776,-500.0,0.00012602,2]
[346979407,1735446650786,-1453.82,0.00012602,2]
[346979408,1735446650795,-500.0,0.00012603,2]
[346979409,1735446650805,-1551.59,0.00012735,2]
[346979410,1735446650814,-582.92,0.00012735,2]
[346979411,1735446650824,-151.0,0.00012736,2]
[346979412,1735446650834,-637.54,0.00012868,2]
[346979413,1735446650843,-1035.04,0.0001287,2]
[346979414,1735446650853,-594.07,0.0001287,2]
[346979415,1735446650863,-498.50416127,0.0001287,2]
[346979416,1735446650872,-500.0,0.0001287,2]
[346979417,1735446650882,-593.08,0.0001287,2]
[346979418,1735446650892,-11324.13,0.00012872,2]
[346979419,1735446650901,-727.39,0.00012875,2]
[346979420,1735446650910,-500.0,0.00012876,2]
[346979421,1735446650920,-500.0,0.00012876,2]
[346979422,1735446650930,-500.0,0.00012876,2]
[346979423,1735446650940,-1453.82,0.00012876,2]
[346979424,1735446650949,-235.8972832,0.000129,2]
[346979425,1735446650959,-235.89728316,0.000129,2]
[346979426,1735446650969,-235.89728316,0.000129,2]
[346979427,1735446650978,-151.0,0.00013,2]
[346979428,1735446650987,-1551.59,0.00013009,2]
[346979429,1735446650997,-582.92,0.00013009,2]
[346979430,1735446651006,-637.54,0.00013142,2]
[346979431,1735446651016,-1035.04,0.00013144,2]
[346979432,1735446651025,-594.07,0.00013144,2]
[346979433,1735446651035,-158.17,0.00013144,2]
[346979434,1735446651046,-593.08,0.00013144,2]
[346979435,1735446651055,-11324.13,0.00013146,2]
[346979436,1735446651064,-727.39,0.00013149,2]
[346979437,1735446651074,-275.26,0.0001315,2]
[346979438,1735446651083,-500.0,0.0001315,2]
[346979439,1735446651093,-151.0,0.0001315,2]
[346979440,1735446651102,-151.0,0.0001315,2]
[346979441,1735446651111,-237.87135015,0.0001315,2]
[346979442,1735446651122,-1453.82,0.0001315,2]
[346979443,1735446651131,-502.82425251,0.00013154,2]
[346979444,1735446651141,-1551.59,0.00013283,2]
[346979445,1735446651151,-582.92,0.00013283,2]
[346979446,1735446651160,-637.54,0.00013416,2]
[346979447,1735446651170,-1035.04,0.00013418,2]
[346979448,1735446651180,-594.07,0.00013418,2]
[346979449,1735446651189,-593.08,0.00013418,2]
[346979450,1735446651199,-151.0,0.0001342,2]
[346979451,1735446651209,-313.648731,0.0001342,2]
[346979452,1735446651218,-234.037078,0.0001342,2]
[346979453,1735446651228,-313.648731,0.0001342,2]
[346979454,1735446651237,-160.9658,0.0001342,2]
[346979455,1735446651247,-160.9658,0.0001342,2]
[346979456,1735446651256,-241.250794,0.0001342,2]
[346979457,1735446651267,-241.250794,0.0001342,2]
[346979458,1735446651276,-11324.13,0.0001342,2]
[346979459,1735446651286,-727.39,0.00013423,2]
[346979460,1735446651294,-500.0,0.00013424,2]
[346979461,1735446651304,-1453.82,0.00013424,2]
[346979462,1735446651313,-5467.83297235,0.00013497,2]
[346979463,1735446651322,-500.85036124,0.00013554,2]
[346979464,1735446651333,-500.30083662,0.00013554,2]
[346979465,1735446651342,-202.35856126,0.00013554,2]
[346979466,1735446651351,-305.56530402,0.00013554,2]
[346979467,1735446651361,-1551.59,0.00013557,2]
[346979468,1735446651370,-582.92,0.00013557,2]
[346979469,1735446651379,-637.54,0.0001369,2]
[346979470,1735446651389,-1035.04,0.00013692,2]
[346979471,1735446651399,-594.07,0.00013692,2]
[346979472,1735446651409,-151.0,0.00013692,2]
[346979473,1735446651419,-206.523486,0.00013692,2]
[346979474,1735446651429,-152.222023,0.00013692,2]
[346979475,1735446651438,-593.08,0.00013692,2]
[346979476,1735446651448,-11324.13,0.00013694,2]
[346979477,1735446651457,-538.09,0.00013697,2]
[346979478,1735446651467,-538.09,0.00013697,2]
[346979479,1735446651476,-538.09,0.00013697,2]
[346979480,1735446651485,-538.09,0.00013697,2]
[346979481,1735446651494,-538.20494525,0.00013697,2]
[346979482,1735446651503,-727.39,0.00013697,2]
[346979483,1735446651512,-1000.0,0.00013698,2]
[346979484,1735446651522,-1000.0,0.00013698,2]
[346979485,1735446651531,-1000.0,0.00013698,2]
[346979486,1735446651540,-500.0,0.00013698,2]
[346979487,1735446651550,-500.0,0.00013698,2]
[346979488,1735446651559,-500.0,0.00013698,2]
[346979489,1735446651569,-500.0,0.00013698,2]
[346979490,1735446651578,-500.0,0.00013698,2]
[346979491,1735446651588,-500.0,0.00013698,2]
[346979492,1735446651597,-500.0,0.00013698,2]
[346979493,1735446651606,-500.0,0.00013698,2]
[346979494,1735446651615,-500.0,0.00013698,2]
[346979495,1735446651690,-500.0,0.00013698,2]
[346979496,1735446651700,-500.0,0.00013698,2]
[346979497,1735446651710,-500.0,0.00013698,2]
[346979498,1735446651720,-151.0,0.00013698,2]
[346979499,1735446651729,-151.0,0.00013698,2]
[346979500,1735446651739,-500.0,0.00013698,2]
[346979501,1735446651748,-502.00440404,0.00013698,2]
[346979502,1735446651758,-151.0,0.00013698,2]
[346979503,1735446651767,-959.840012,0.00013698,2]
[346979504,1735446651776,-151.0,0.00013698,2]
[346979505,1735446651786,-959.840012,0.00013698,2]
[346979506,1735446651795,-1000.0,0.00013698,2]
[346979507,1735446651804,-1000.0,0.00013698,2]
[346979508,1735446651814,-1000.0,0.00013698,2]
[346979509,1735446651823,-1000.0,0.00013698,2]
[346979510,1735446651833,-1000.0,0.00013698,2]
[346979511,1735446651842,-1000.0,0.00013698,2]
[346979512,1735446651852,-1000.0,0.00013698,2]
[346979513,1735446651861,-1000.0,0.00013698,2]
[346979514,1735446651870,-1000.0,0.00013698,2]
[346979515,1735446651880,-1000.0,0.00013698,2]
[346979516,1735446651890,-1000.0,0.00013698,2]
[346979517,1735446651899,-1000.0,0.00013698,2]
[346979518,1735446651909,-500.0,0.00013698,2]
[346979519,1735446651918,-500.0,0.00013698,2]
[346979520,1735446651928,-500.0,0.00013698,2]
[346979521,1735446651938,-500.0,0.00013698,2]
[346979522,1735446651947,-500.0,0.00013698,2]
[346979523,1735446651957,-500.0,0.00013698,2]
[346979524,1735446651967,-509.35858746,0.00013698,2]
[346979525,1735446651976,-197.142334,0.00013698,2]
[346979526,1735446651986,-197.142334,0.00013698,2]
[346979527,1735446651995,-1453.82,0.00013698,2]
[346979528,1735446652004,-191.559891,0.00013699,2]
[346979529,1735446652014,-151.0,0.00013699,2]
[346979530,1735446652024,-151.0,0.00013699,2]
[346979531,1735446652034,-151.0,0.00013699,2]
[346979532,1735446652043,-500.0,0.00013699,2]
[346979533,1735446652053,-500.0,0.00013699,2]
[346979534,1735446652063,-500.0,0.00013699,2]
[346979535,1735446652072,-630.60953869,0.00013699,2]
[346979536,1735446652082,-500.0,0.00013699,2]
[346979537,1735446652092,-500.0,0.00013699,2]
[346979538,1735446652101,-500.0,0.00013699,2]
[346979539,1735446652110,-500.0,0.00013699,2]
[346979540,1735446652119,-500.0,0.00013699,2]
[346979541,1735446652129,-514.51217096,0.00013699,2]
[346979542,1735446652140,-1551.59,0.00013831,2]
[346979543,1735446652150,-261.941508,0.00013831,2]
[346979544,1735446652159,-267.309383,0.00013831,2]
[346979545,1735446652168,-151.0,0.00013831,2]
[346979546,1735446652177,-582.92,0.00013831,2]
[346979547,1735446652187,-151.0,0.000139,2]
[346979548,1735446652197,-637.54,0.00013964,2]
[346979549,1735446652207,-1035.04,0.00013966,2]
[346979550,1735446652217,-594.07,0.00013966,2]
[346979551,1735446652227,-593.08,0.00013966,2]
[346979552,1735446652236,-160.44363532,0.00013967,2]
[346979553,1735446652246,-11324.13,0.00013968,2]
[346979554,1735446652256,-170.208355,0.00013971,2]
[346979555,1735446652266,-238.924818,0.00013971,2]
[346979556,1735446652275,-170.208355,0.00013971,2]
[346979557,1735446652285,-238.924818,0.00013971,2]
[346979558,1735446652294,-151.0,0.00013971,2]
[346979559,1735446652304,-194.580772,0.00013971,2]
[346979560,1735446652313,-151.0,0.00013971,2]
[346979561,1735446652323,-727.39,0.00013971,2]
[346979562,1735446652332,-232.63,0.00013972,2]
[346979563,1735446652341,-1453.82,0.00013972,2]
[346979564,1735446652350,-400.0,0.00013973,2]
[346979565,1735446652360,-1551.59,0.00014105,2]
[346979566,1735446652369,-582.92,0.00014105,2]
[346979567,1735446652379,-269.49351501,0.00014114,2]
[346979568,1735446652391,-235.89728316,0.00014135,2]
[346979569,1735446652401,-637.54,0.00014238,2]
[346979570,1735446652413,-1035.04,0.0001424,2]
[346979571,1735446652424,-594.07,0.0001424,2]
[346979572,1735446652433,-593.08,0.0001424,2]
[346979573,1735446652443,-11324.13,0.00014242,2]
[346979574,1735446652455,-727.39,0.00014245,2]
[346979575,1735446652466,-1453.82,0.00014246,2]
[346979576,1735446652475,-1551.59,0.00014379,2]
[346979577,1735446652485,-582.92,0.00014379,2]
[346979578,1735446652495,-637.54,0.00014512,2]
[346979579,1735446652504,-1035.04,0.00014514,2]
[346979580,1735446652514,-594.07,0.00014514,2]
[346979581,1735446652523,-593.08,0.00014514,2]
[346979582,1735446652533,-11324.13,0.00014516,2]
[346979583,1735446652542,-727.39,0.00014519,2]
[346979584,1735446652552,-1453.82,0.0001452,2]
[346979585,1735446652562,-1551.59,0.00014653,2]
[346979586,1735446652572,-582.92,0.00014653,2]
[346979587,1735446652583,-637.54,0.00014786,2]
[346979588,1735446652592,-1035.04,0.00014788,2]
[346979589,1735446652602,-594.07,0.00014788,2]
[346979590,1735446652611,-151.0,0.00014788,2]
[346979591,1735446652621,-593.08,0.00014788,2]
[346979592,1735446652631,-11324.13,0.0001479,2]
[346979593,1735446652640,-727.39,0.00014793,2]
[346979594,1735446652650,-151.0,0.00014794,2]
[346979595,1735446652660,-313.648731,0.00014794,2]
[346979596,1735446652669,-234.037078,0.00014794,2]
[346979597,1735446652678,-313.648731,0.00014794,2]
[346979598,1735446652688,-160.9658,0.00014794,2]
[346979599,1735446652697,-160.9658,0.00014794,2]
[346979600,1735446652707,-241.250794,0.00014794,2]
[346979601,1735446652716,-241.250794,0.00014794,2]
[346979602,1735446652725,-1453.82,0.00014794,2]
[346979603,1735446652735,-151.0,0.000149,2]
[346979604,1735446652745,-565.20480798,0.000149,2]
[346979605,1735446652755,-1551.59,0.00014927,2]
[346979606,1735446652764,-151.0,0.00014927,2]
[346979607,1735446652774,-151.0,0.00014927,2]
[346979608,1735446652784,-582.92,0.00014927,2]
[346979609,1735446652793,-1013.75871396,0.00014985,2]
[346979610,1735446652803,-1013.75871396,0.0001499,2]
[346979611,1735446652812,-1013.75871396,0.00014996,2]
[346979612,1735446652822,-637.54,0.0001506,2]
[346979613,1735446652832,-1035.04,0.00015062,2]
[346979614,1735446652842,-594.07,0.00015062,2]
[346979615,1735446652852,-593.08,0.00015062,2]
[346979616,1735446652862,-11324.13,0.00015064,2]
[346979617,1735446652871,-727.39,0.00015067,2]
[346979618,1735446652881,-151.0,0.00015068,2]
[346979619,1735446652891,-959.840012,0.00015068,2]
[346979620,1735446652901,-151.0,0.00015068,2]
[346979621,1735446652910,-959.840012,0.00015068,2]
[346979622,1735446652920,-1453.82,0.00015068,2]
[346979623,1735446652929,-1551.59,0.00015201,2]
[346979624,1735446652939,-582.92,0.00015201,2]
[346979625,1735446652949,-197.142334,0.00015201,2]
[346979626,1735446652959,-197.142334,0.00015201,2]
[346979627,1735446652968,-637.54,0.00015334,2]
[346979628,1735446652978,-1035.04,0.00015336,2]
[346979629,1735446652988,-594.07,0.00015336,2]
[346979630,1735446652997,-593.08,0.00015336,2]
[346979631,1735446653008,-11324.13,0.00015338,2]
[346979632,1735446653017,-21697.83691269,0.00015341,2]
[346979633,1735446653286,-500.0,0.00012046,2]
[346979634,1735446653295,-500.0,0.0001232,2]
[346979635,1735446653305,-500.0,0.00012594,2]
[346979636,1735446653314,-500.0,0.00012868,2]
[346979637,1735446653323,-500.0,0.00013142,2]
[346979638,1735446653333,-500.0,0.00013416,2]
[346979639,1735446653343,-371.79,0.0001369,2]
[346979640,1735446653352,-126606.02774078,0.00015341,2]
[346979641,1735446653748,-503.20269975,9.313e-05,2]
[346979642,1735446653758,-500.0,9.313e-05,2]
[346979643,1735446653768,-501.10543736,9.313e-05,2]
[346979644,1735446653777,-500.0,9.313e-05,2]
[346979645,1735446653787,-500.0,9.587e-05,2]
[346979646,1735446653797,-195.912102,0.00010959,2]
[346979647,1735446653807,-195.912102,0.00010959,2]
[346979648,1735446653816,-195.912102,0.00010959,2]
[346979649,1735446653825,-195.912102,0.00010959,2]
[346979650,1735446653834,-195.912102,0.00011091,2]
[346979651,1735446653844,-195.912102,0.00011091,2]
[346979652,1735446653853,-195.912102,0.00012322,2]
[346979653,1735446653865,-195.912102,0.00012322,2]
[346979654,1735446653875,-195.912102,0.00013692,2]
[346979655,1735446653885,-195.912102,0.00013692,2]
[346979656,1735446653894,-195.912102,0.00014788,2]
[346979657,1735446653904,-4498.45855889,0.00015341,2]
[346979658,1735446653916,-2224.5327374,0.00015341,2]
[346979659,1735446653925,-20025.63500438,0.00015341,2]
[346979660,1735446653935,-727.39,0.00015341,2]
[346979661,1735446653944,-1453.82,0.00015342,2]
[346979662,1735446653954,-1551.59,0.00015475,2]
[346979663,1735446653963,-582.92,0.00015475,2]
[346979664,1735446653973,-637.64,0.00015608,2]
[346979665,1735446653983,-1035.25,0.0001561,2]
[346979666,1735446653992,-594.18,0.0001561,2]
[346979667,1735446654002,-593.19,0.0001561,2]
[346979668,1735446654012,-11324.24999999,0.00015612,2]
[346979669,1735446654022,-727.39,0.00015615,2]
[346979670,1735446654032,-151.0,0.00015616,2]
[346979671,1735446654041,-152.844984,0.00015616,2]
[346979672,1735446654051,-1454.00501258,0.00015616,2]
[346979673,1735446654060,-1551.59,0.00015749,2]
[346979674,1735446654070,-151.0,0.00015749,2]
[346979675,1735446654079,-582.92,0.00015749,2]
[346979676,1735446654088,-235.89728316,0.00015777,2]
[346979677,1735446654098,-17263.11035928,0.00015787,2]
[346979678,1735446654107,-727.40776487,0.00015889,2]
[346979679,1735446654116,-151.0,0.000159,2]
[346979680,1735446654126,-15569.66451321,0.00016,2]
[346979681,1735446654136,-1551.59,0.00016023,2]
[346979682,1735446654146,-582.92,0.00016023,2]
[346979683,1735446654155,-1551.65033667,0.00016296,2]
[346979684,1735446654164,-583.11,0.00016296,2]
[346979685,1735446654234,-170.208355,0.00016296,2]
[346979686,1735446654243,-238.924818,0.00016296,2]
[346979687,1735446654252,-170.208355,0.00016296,2]
[346979688,1735446654261,-238.924818,0.00016296,2]
[346979689,1735446654270,-151.0,0.00016296,2]
[346979690,1735446654279,-151.0,0.00016296,2]
[346979691,1735446654288,-151.0,0.00016296,2]
[346979692,1735446654297,-195.912102,0.00016296,2]
[346979693,1735446654306,-151.0,0.000169,2]
[346979694,1735446654315,-2337.83,0.000169,2]
[346979695,1735446654325,-895.32,0.000169,2]
[346979696,1735446654334,-3243.82,0.000169,2]
[346979697,1735446654343,-241.935,0.00017062,2]
[346979698,1735446654352,-235.89728316,0.00017419,2]
[346979699,1735446654362,-151.0,0.000178,2]
[346979700,1735446654372,-151.0,0.000188,2]
[346979701,1735446654381,-150.0,0.000189,2]
[346979702,1735446654390,-1057.627,0.00018989,2]
[346979703,1735446654399,-350.388,0.00018989,2]
[346979704,1735446654409,-235.89728316,0.00019062,2]
[346979705,1735446654419,-164.9847203,0.00019178,2]
[346979706,1735446654433,-592.493,0.0001972,2]
[346979707,1735446654442,-151.0,0.000198,2]
[346979708,1735446654451,-151.0,0.000198,2]
[346979709,1735446654461,-356.0731222,0.00019836,2]
[346979710,1735446654470,-153.0,0.00019945,2]
[346979711,1735446654479,-154.0319908,0.00019945,2]
[346979712,1735446654488,-8724.87421758,0.00019947,2]
[346979713,1735446654498,-153.0,0.00019973,2]
[346979714,1735446654507,-153.0,0.00019973,2]
[346979715,1735446654517,-153.0,0.00019973,2]
[346979716,1735446654527,-153.0,0.00019973,2]
[346979717,1735446654537,-7095.50949999,0.0002,2]
[346979718,1735446654546,-8724.87421758,0.00020269,2]
[346979719,1735446654555,-870.4,0.00020272,2]
[346979720,1735446654566,-499.0,0.00020273,2]
[346979721,1735446654576,-151.0,0.00020277,2]
[346979722,1735446654585,-249.41597017,0.00020421,2]
[346979723,1735446654594,-8724.87421758,0.00020433,2]
[346979724,1735446654603,-400.0,0.00020447,2]
[346979725,1735446654612,-1000.0,0.00020511,2]
[346979726,1735446654621,-197.142334,0.00020511,2]
[346979727,1735446654632,-197.142334,0.00020511,2]
[346979728,1735446654642,-151.0,0.00020511,2]
[346979729,1735446654651,-197.142334,0.00020511,2]
[346979730,1735446654661,-197.142334,0.00020511,2]
[346979731,1735446654670,-195.912102,0.00020511,2]
[346979732,1735446654680,-1000.0,0.00020517,2]
[346979733,1735446654690,-449.803505,0.00020521,2]
[346979734,1735446654699,-171.3182412,0.00020552,2]
[346979735,1735446654709,-1000.0,0.00020561,2]
[346979736,1735446654718,-1000.0,0.00020573,2]
[346979737,1735446654728,-1986.322,0.00020583,2]
[346979738,1735446654737,-1000.0,0.00020583,2]
[346979739,1735446654747,-151.0,0.00020589,2]
[346979740,1735446654756,-151.0,0.00020589,2]
[346979741,1735446654766,-151.0,0.00020589,2]
[346979742,1735446654775,-151.0,0.00020589,2]
[346979743,1735446654785,-313.648731,0.00020589,2]
[346979744,1735446654795,-234.037078,0.00020589,2]
[346979745,1735446654805,-313.648731,0.00020589,2]
[346979746,1735446654815,-160.9658,0.00020589,2]
[346979747,1735446654825,-160.9658,0.00020589,2]
[346979748,1735446654836,-241.250794,0.00020589,2]
[346979749,1735446654846,-241.250794,0.00020589,2]
[346979750,1735446654855,-2337.83,0.000206,2]
[346979751,1735446654865,-895.32,0.000206,2]
[346979752,1735446654875,-3243.82,0.000206,2]
[346979753,1735446654884,-151.0,0.000206,2]
[346979754,1735446654894,-151.0,0.000206,2]
[346979755,1735446654904,-1000.0,0.0002064,2]
[346979756,1735446654914,-1000.0,0.00020651,2]
[346979757,1735446654923,-870.4,0.00020659,2]
[346979758,1735446654933,-870.4,0.00020659,2]
[346979759,1735446654944,-151.33274,0.0002066,2]
[346979760,1735446654954,-290.811209,0.0002066,2]
[346979761,1735446654963,-151.0,0.0002066,2]
[346979762,1735446654972,-959.840012,0.0002066,2]
[346979763,1735446654981,-240.02051,0.0002066,2]
[346979764,1735446654991,-959.840012,0.0002066,2]
[346979765,1735446655001,-1000.0,0.00020675,2]
[346979766,1735446655010,-1000.0,0.00020678,2]
[346979767,1735446655020,-151.0,0.00020678,2]
[346979768,1735446655029,-2335.18369206,0.00020679,2]
[346979769,1735446655039,-1000.0,0.00020681,2]
[346979770,1735446655049,-181.312277,0.000207,2]
[346979771,1735446655059,-870.4,0.000207,2]
[346979772,1735446655069,-1000.0,0.00020703,2]
[346979773,1735446655079,-1000.0,0.00020706,2]
[346979774,1735446655088,-449.803505,0.00020712,2]
[346979775,1735446655098,-1067.65849085,0.00020745,2]
[346979776,1735446655108,-151.0,0.00020745,2]
[346979777,1735446655118,-313.648731,0.00020745,2]
[346979778,1735446655127,-234.037078,0.00020745,2]
[346979779,1735446655137,-313.648731,0.00020745,2]
[346979780,1735446655146,-160.9658,0.00020745,2]
[346979781,1735446655156,-160.9658,0.00020745,2]
[346979782,1735446655166,-241.250794,0.00020745,2]
[346979783,1735446655175,-241.250794,0.00020745,2]
[346979784,1735446655186,-170.208355,0.00020745,2]
[346979785,1735446655195,-238.924818,0.00020745,2]
[346979786,1735446655205,-170.208355,0.00020745,2]
[346979787,1735446655215,-238.924818,0.00020745,2]
[346979788,1735446655224,-151.0,0.00020745,2]
[346979789,1735446655233,-151.0,0.00020745,2]
[346979790,1735446655243,-1000.0,0.00020747,2]
[346979791,1735446655252,-151.0,0.00020759,2]
[346979792,1735446655262,-870.4,0.00020759,2]
[346979793,1735446655271,-870.4,0.00020759,2]
[346979794,1735446655281,-870.4,0.00020759,2]
[346979795,1735446655290,-870.4,0.00020759,2]
[346979796,1735446655299,-870.4,0.00020759,2]
[346979797,1735446655308,-870.4,0.00020759,2]
[346979798,1735446655318,-870.4,0.00020759,2]
[346979799,1735446655328,-870.4,0.00020759,2]
[346979800,1735446655337,-870.4,0.00020759,2]
[346979801,1735446655346,-870.4,0.00020759,2]
[346979802,1735446655355,-870.52,0.00020759,2]
[346979803,1735446655364,-28482.94685679,0.0002076,30]
[346979804,1735446688598,-2651.9,0.00025647,120]
[346979805,1735446747291,530.1316638,8.345e-05,2]
[346979806,1735446829359,2632.9900935,8.377e-05,2]
[346979807,1735447387099,1137.55465251,8.939e-05,2]
[346979808,1735447428549,3245.4941113,8.307e-05,2]
[346979814,1735447558158,-300.0,9.302e-05,2]
[346979815,1735447558180,-414.36496161,9.303e-05,2]
[346979816,1735447558202,-500.0,9.303e-05,2]
[346979817,1735447558224,-500.0,9.303e-05,2]
[346979818,1735447558245,-500.0,9.303e-05,2]
[346979819,1735447558266,-500.0,9.303e-05,2]
[346979820,1735447558287,-255.27467579,9.303e-05,2]
[346979884,1735447626096,-277.99055866,9.302e-05,2]
[346979885,1735447627098,-22.00944134,9.302e-05,2]
[346979886,1735447627119,-244.72532421,9.303e-05,2]
[346979887,1735447627140,-500.0,9.303e-05,2]
[346979888,1735447627165,-224.08536639,9.303e-05,2]
[346979889,1735447635224,-275.91463361,9.303e-05,2]
[346979890,1735447635248,-500.0,9.303e-05,2]
[346979891,1735447635269,-500.0,9.303e-05,2]
[346979892,1735447635290,-500.0,9.303e-05,2]
[346979893,1735447635310,-500.0,9.303e-05,2]
[346979894,1735447635330,-500.0,9.303e-05,2]
[346979895,1735447635351,-500.0,9.303e-05,2]
[346979896,1735447635371,-500.0,9.303e-05,2]
[346979897,1735447635391,-500.0,9.303e-05,2]
[346979898,1735447635413,-500.0,9.303e-05,2]
[346979899,1735447635436,-500.0,9.303e-05,2]
[346979900,1735447635461,-500.0,9.303e-05,2]
[346979901,1735447635482,-500.0,9.303e-05,2]
[346979902,1735447635503,-500.0,9.303e-05,2]
[346979903,1735447635525,-500.0,9.303e-05,2]
[346979904,1735447635546,-500.0,9.303e-05,2]
[346979905,1735447635567,-500.0,9.303e-05,2]
[346979906,1735447635588,-420.62442974,9.303e-05,2]
[346979907,1735447635609,-500.0,9.303e-05,2]
[346979908,1735447635630,-500.0,9.303e-05,2]
[346979909,1735447635650,-390.39018068,9.303e-05,2]
[346979910,1735447635672,-500.0,9.303e-05,2]
[346979911,1735447635693,-500.0,9.303e-05,2]
[346979912,1735447635714,-500.0,9.304e-05,2]
[346979913,1735447635735,-500.0,9.304e-05,2]
[346979914,1735447635756,-501.00476758,9.304e-05,2]
[346979915,1735447635776,-500.59643341,9.304e-05,2]
[346979916,1735447635797,-500.0,9.304e-05,2]
[346979917,1735447635817,-500.8412705,9.304e-05,2]
[346979918,1735447635837,-500.77130577,9.304e-05,2]
[346979919,1735447635857,-500.59182723,9.304e-05,2]
[346979920,1735447635878,-501.5617095,9.304e-05,2]
[346979921,1735447635900,-237.55601736,9.304e-05,2]
[346979922,1735447639158,2453.82947889,8.308e-05,2]
[346979923,1735447639193,10000.0,8.308e-05,2]
[346979924,1735447639227,10000.0,8.308e-05,2]
[346979925,1735447639260,2446.17052111,8.308e-05,2]
[346979926,1735447646093,-500.0,9.303e-05,2]
[346979927,1735447646116,-262.44398264,9.304e-05,2]
[346979928,1735447646140,-500.0,9.304e-05,2]
[346979929,1735447646168,-269.29954359,9.304e-05,2]
[346979933,1735447774365,1966.261679,8.374e-05,2]
[346979934,1735447780390,-500.0,9.303e-05,2]